fUSD/lending_fUSD_20241203
["ID","MTS","AMOUNT","RATE_DAILY","PERIOD"]
[344060258,1733263842659,-7179.36086257,7.2e-05,2]
[344060259,1733263842706,-19322.59799999,7.2e-05,2]
[344060260,1733263842859,-504.35039133,7.2e-05,2]
[344060294,1733263846569,-1064.08001684,7.2e-05,2]
[344060295,1733263846581,-8416.4207919,7.2e-05,2]
[344060296,1733263846593,-1321.371517,7.2e-05,2]
[344060297,1733263846604,-60774.5208252,7.2e-05,2]
[344060298,1733263846636,-300.0,7.2e-05,2]
[344060299,1733263846647,-3799.36604732,7.2e-05,2]
[344060300,1733263846677,-787334.5249127,7.2e-05,2]
[344060301,1733263846709,-3899.99999979,7.2e-05,2]
[344060303,1733263846727,-59156.774,7.2e-05,2]
[344060304,1733263846738,-654.35864855,7.2e-05,2]
[344060305,1733263846750,-24051.73240764,7.2e-05,2]
[344060306,1733263870937,1700.0,6.5e-05,2]
[344060307,1733263873162,3500.0,6.6e-05,2]
[344060308,1733263875293,5300.0,6.7e-05,2]
[344060309,1733263877381,7100.0,6.8e-05,2]
[344060310,1733263880465,8900.0,6.9e-05,2]
[344060311,1733263881603,1700.0,7e-05,2]
[344060313,1733263934869,2000.0,6.859e-05,2]
[344060317,1733264016944,667.74,6.904e-05,2]
[344060318,1733264017699,250.0,6.904e-05,2]
[344060319,1733264048679,322.34,6.865e-05,2]
[344060320,1733264070080,214.42,5.492e-05,2]
[344060321,1733264082029,500.0,6.865e-05,2]
[344060322,1733264095896,723.75,6.885e-05,2]
[344060323,1733264135693,230.8821,7.1e-05,2]
[344060324,1733264161722,119005.46539284,7.13e-05,2]
[344060326,1733264219380,200.0,6.857e-05,2]
[344060327,1733264227414,99669.7408,7.1e-05,2]
[344060328,1733264290074,2500.0,7.1e-05,2]
[344060329,1733264312348,1362.462,7.056e-05,2]
[344060330,1733264312687,185.062,7.056e-05,2]
[344060332,1733264363576,250.0,6.858e-05,2]
[344060333,1733264409936,2500.0,7.1e-05,2]
[344060334,1733264410886,25708.85483018,0.00023,120]
[344060335,1733264422794,150.0,0.00023,120]
[344060336,1733264426951,23900.0,6.794e-05,2]
[344060337,1733264514624,2500.0,7.1e-05,2]
[344060338,1733264534335,383.3311,7.1e-05,2]
[344060339,1733264608970,178.96,6.801e-05,2]
[344060340,1733264635640,250.0,6.795e-05,2]
[344060341,1733264640522,2500.0,7.1e-05,2]
[344060342,1733264684640,150.0,5.383e-05,2]
[344060343,1733264703163,150.0,6.929e-05,2]
[344060344,1733264709307,272652.80650376,7e-05,2]
[344060345,1733264756034,1628.58469374,6.94e-05,2]
[344060346,1733264767969,2500.0,7.1e-05,2]
[344060347,1733264768437,749.99999901,7e-05,2]
[344060356,1733264840078,700.0,6.5e-05,2]
[344060357,1733264841736,1400.0,6.6e-05,2]
[344060358,1733264844037,2100.0,6.7e-05,2]
[344060359,1733264845985,2800.0,6.8e-05,2]
[344060360,1733264848054,3500.0,6.9e-05,2]
[344060361,1733264850729,700.0,7e-05,2]
[344060362,1733264865090,2500.0,7.1e-05,2]
[344060363,1733264874590,3000.0,0.00023,120]
[344060364,1733264898294,1000.0,7.163e-05,2]
[344060388,1733264990958,2500.0,7.1e-05,2]
[344060389,1733265002822,4170.3,0.00023,120]
[344060390,1733265019790,250.0,6.712e-05,2]
[344060406,1733265031881,-150.0,7.198e-05,2]
[344060407,1733265031891,-150.0,7.198e-05,2]
[344060408,1733265031900,-150.0,7.198e-05,2]
[344060409,1733265031910,-150.0,7.198e-05,2]
[344060410,1733265031919,-150.0,7.198e-05,2]
[344060411,1733265031929,-150.0,7.198e-05,2]
[344060412,1733265031940,-22.05799066,7.198e-05,2]
[344060413,1733265031954,-127.94200934,7.198e-05,2]
[344060414,1733265031965,-150.0,7.198e-05,2]
[344060415,1733265031975,-150.0,7.198e-05,2]
[344060416,1733265031989,-150.0,7.198e-05,2]
[344060417,1733265032000,-150.0,7.198e-05,2]
[344060418,1733265032010,-150.0,7.198e-05,2]
[344060419,1733265032022,-150.0,7.198e-05,2]
[344060420,1733265032033,-150.0,7.198e-05,2]
[344060421,1733265032043,-150.0,7.198e-05,2]
[344060423,1733265032057,-150.0,7.198e-05,2]
[344060424,1733265032069,-150.0,7.198e-05,2]
[344060425,1733265032081,-150.0,7.198e-05,2]
[344060426,1733265032096,-150.0,7.198e-05,2]
[344060427,1733265032109,-150.0,7.198e-05,2]
[344060428,1733265032121,-1700.8423177,7.198e-05,2]
[344060429,1733265032132,-577.54888112,7.199e-05,2]
[344060430,1733265032143,-1094.68,7.199e-05,2]
[344060431,1733265032154,-161.94391087,7.199e-05,2]
[344060432,1733265032164,-475356.98861822,7.2e-05,2]
[344060434,1733265032181,-4594.85721001,7.2e-05,2]
[344060436,1733265032211,-26344.50086991,7.2e-05,2]
[344060438,1733265032224,-37066.43227188,7.2e-05,2]
[344060441,1733265032246,-43328.99998691,7.2e-05,2]
[344060443,1733265032258,-103249.99786835,7.2e-05,2]
[344060445,1733265032270,-26365.75046195,7.2e-05,2]
[344060448,1733265032282,-282924.65057261,7.2e-05,2]
[344060450,1733265032294,-101800.99999889,7.2e-05,2]
[344060494,1733265037941,-312.27156458,7.2e-05,2]
[344060495,1733265037953,-757.25070126,7.2e-05,2]
[344060496,1733265037964,-519.07829482,7.2e-05,2]
[344060497,1733265037976,-2670.57491714,7.2e-05,2]
[344060502,1733265038269,-47165.83301664,7.2e-05,2]
[344060503,1733265038281,-548.80980888,7.2e-05,2]
[344060506,1733265039774,-2568.72058701,7.2e-05,2]
[344060507,1733265039786,-949.25020891,7.2e-05,2]
[344060508,1733265039798,-6008.27492,7.2e-05,2]
[344060509,1733265039822,-607.46602351,7.2e-05,2]
[344060510,1733265039837,-3475.79030406,7.2e-05,2]
[344060511,1733265039849,-4927.23480549,7.2e-05,2]
[344060512,1733265039870,-5301.07973816,7.2e-05,2]
[344060513,1733265039881,-1989.04209164,7.2e-05,2]
[344060514,1733265039893,-302.66029088,7.2e-05,2]
[344060516,1733265040922,-3918.0,7.2e-05,2]
[344060517,1733265040934,-1083.98424231,7.2e-05,2]
[344060518,1733265040959,-9620.05,7.2e-05,2]
[344060528,1733265042682,-96988.00000001,7.2e-05,2]
[344060529,1733265042693,-2852.48249908,7.2e-05,2]
[344060530,1733265042703,-2702.10730712,7.2e-05,2]
[344060531,1733265042714,-6522.18278778,7.2e-05,2]
[344060532,1733265042724,-18171.29795,7.2e-05,2]
[344060533,1733265042792,-14229.590226,7.2e-05,2]
[344060534,1733265042803,-2652.3260931,7.2e-05,2]
[344060535,1733265042848,-256.475,7.2e-05,2]
[344060536,1733265043043,-369.18329615,7.2e-05,2]
[344060537,1733265043054,-682.81620386,7.2e-05,2]
[344060538,1733265043066,-2031.14313668,7.2e-05,2]
[344060539,1733265043077,-8397.28079091,7.2e-05,2]
[344060542,1733265043093,-902.68437569,7.2e-05,2]
[344060543,1733265043104,-951.77514956,7.2e-05,2]
[344060545,1733265043119,-437.35039872,7.2e-05,2]
[344060546,1733265043130,-3971.39570352,7.2e-05,2]
[344060554,1733265045615,-1176.72880803,7.197e-05,2]
[344060555,1733265045629,-2122.27119197,7.197e-05,2]
[344060556,1733265045639,-12547.00863464,7.2e-05,2]
[344060557,1733265045860,-655.0570145,7.2e-05,2]
[344060558,1733265045872,-283.00013761,7.2e-05,2]
[344060566,1733265074813,879.7018,7.1e-05,2]
[344060567,1733265115432,23900.0,6.75e-05,2]
[344060568,1733265117469,2500.0,7.1e-05,2]
[344060570,1733265128875,11138.07,6.762e-05,2]
[344060576,1733265221537,2500.0,7.1e-05,2]
[344060578,1733265241859,19761.0,7.128e-05,2]
[344060580,1733265279516,150.0,7.161e-05,2]
[344060581,1733265298547,882.58,6.839e-05,2]
[344060582,1733265318313,1516.92,6.817e-05,2]
[344060583,1733265341422,1322.0405,7.1e-05,2]
[344060584,1733265354795,1082.35,6.889e-05,2]
[344060585,1733265354871,1500.0,6.889e-05,2]
[344060586,1733265400943,150.0,0.00023,120]
[344060587,1733265403348,200353.13369991,7.1e-05,2]
[344060588,1733265425514,6780.05,6.82e-05,2]
[344060589,1733265472133,200.0,6.785e-05,2]
[344060590,1733265488407,75681.66,6.785e-05,2]
[344060591,1733265512307,1089.97,7.056e-05,2]
[344060592,1733265512617,185.06378628,7.056e-05,2]
[344060594,1733265573512,250.0,6.839e-05,2]
[344060595,1733265608661,250.0,6.839e-05,2]
[344060596,1733265612691,208.2,5.452e-05,2]
[344060597,1733265680002,17425.48,6.817e-05,2]
[344060598,1733265696854,23900.0,6.763e-05,2]
[344060599,1733265705464,1821.73,6.778e-05,2]
[344060600,1733265707752,173.52,6.763e-05,2]
[344060601,1733265719457,2143.86,6.763e-05,2]
[344060602,1733265759499,1008.65,6.814e-05,2]
[344060603,1733265790780,1243.72,6.763e-05,2]
[344060604,1733265801520,3342.72,6.84e-05,2]
[344060605,1733265816640,200.0,6.786e-05,2]
[344060606,1733265903862,630.42,6.839e-05,2]
[344060607,1733265925368,565.73,6.722e-05,2]
[344060608,1733265939082,150.0,6.968e-05,2]
[344060616,1733266042549,200.0,6.6e-05,2]
[344060617,1733266044625,500.0,6.7e-05,2]
[344060619,1733266047024,800.0,6.8e-05,2]
[344060620,1733266049227,1100.0,6.9e-05,2]
[344060621,1733266051038,1400.0,7e-05,2]
[344060622,1733266082586,14604.09675172,7.13e-05,2]
[344060623,1733266090407,1500.0,6.697e-05,2]
[344060624,1733266094886,70914.8571,7.1e-05,2]
[344060626,1733266144282,1847.0,7.128e-05,2]
[344060628,1733266153275,2500.0,7.1e-05,2]
[344060629,1733266184279,404.0447,7.1e-05,2]
[344060630,1733266211555,250.0,6.622e-05,2]
[344060631,1733266225457,250.0,6.598e-05,2]
[344060648,1733266231938,-150.0,7.178e-05,2]
[344060649,1733266231947,-300.0,7.197e-05,2]
[344060650,1733266231957,-150.0,7.198e-05,2]
[344060651,1733266231967,-150.0,7.198e-05,2]
[344060652,1733266231976,-150.0,7.198e-05,2]
[344060653,1733266231986,-150.0,7.198e-05,2]
[344060654,1733266231995,-19.00829095,7.198e-05,2]
[344060655,1733266232114,-130.99170905,7.198e-05,2]
[344060656,1733266232124,-150.0,7.198e-05,2]
[344060657,1733266232135,-150.0,7.198e-05,2]
[344060658,1733266232144,-150.0,7.198e-05,2]
[344060659,1733266232154,-150.0,7.198e-05,2]
[344060660,1733266232163,-150.0,7.198e-05,2]
[344060661,1733266232173,-150.0,7.198e-05,2]
[344060662,1733266232183,-150.0,7.198e-05,2]
[344060663,1733266232193,-150.0,7.198e-05,2]
[344060664,1733266232202,-150.0,7.198e-05,2]
[344060665,1733266232212,-150.0,7.198e-05,2]
[344060666,1733266232222,-150.0,7.198e-05,2]
[344060667,1733266232231,-150.0,7.198e-05,2]
[344060668,1733266232242,-150.0,7.198e-05,2]
[344060669,1733266232253,-489.48132354,7.198e-05,2]
[344060670,1733266232263,-1049.07,7.199e-05,2]
[344060671,1733266232272,-150.0,7.199e-05,2]
[344060672,1733266232282,-798756.46022442,7.2e-05,2]
[344060673,1733266232293,-946.91543002,7.2e-05,2]
[344060674,1733266232304,-3047.87549587,7.2e-05,2]
[344060675,1733266232315,-23699.05774185,7.2e-05,2]
[344060676,1733266232342,-11521.17431418,7.2e-05,2]
[344060678,1733266232369,-123530.47101292,7.2e-05,2]
[344060679,1733266232381,-241907.75997861,7.2e-05,2]
[344060680,1733266232392,-6341.03701042,7.2e-05,2]
[344060681,1733266232403,-23566.977159,7.2e-05,2]
[344060747,1733266238168,-1670.15509851,7.2e-05,2]
[344060756,1733266239776,-15114.0717839,7.2e-05,2]
[344060757,1733266239789,-333.7013965,7.2e-05,2]
[344060758,1733266239852,-9599.51168368,7.2e-05,2]
[344060759,1733266240275,-5200.00015749,7.2e-05,2]
[344060760,1733266240290,-7750.57799967,7.2e-05,2]
[344060770,1733266243025,-1036.0,7.2e-05,2]
[344060771,1733266243037,-2072.53499007,7.2e-05,2]
[344060772,1733266243048,-40734.53673673,7.2e-05,2]
[344060773,1733266243306,-5143.82216672,7.2e-05,2]
[344060790,1733266246257,-271.91537335,7.2e-05,2]
[344060791,1733266246292,-9719.58550162,7.2e-05,2]
[344060792,1733266246352,-16000.43745213,7.2e-05,2]
[344060793,1733266247333,4804.1758,7.1e-05,2]
[344060794,1733266252843,600.0,6.7e-05,2]
[344060795,1733266254965,1300.0,6.8e-05,2]
[344060796,1733266257068,2000.0,6.9e-05,2]
[344060797,1733266260279,2700.0,7e-05,2]
[344060798,1733266264683,150.0,7.041e-05,2]
[344060799,1733266264727,150.0,7.146e-05,2]
[344060800,1733266283990,4847.20727348,7.1e-05,2]
[344060801,1733266285480,2500.0,7.1e-05,2]
[344060802,1733266301131,175.07,5.273e-05,2]
[344060803,1733266301346,175.07,6.591e-05,2]
[344060805,1733266308252,500.0,7.1e-05,2]
[344060806,1733266331970,3657.54,6.602e-05,2]
[344060807,1733266342461,175.3044957,7.055e-05,2]
[344060808,1733266344951,3037.65,6.588e-05,2]
[344060812,1733266363564,168.03,6.597e-05,2]
[344060816,1733266409290,2500.0,7.1e-05,2]
[344060817,1733266432444,175.3044958,7.055e-05,2]
[344060818,1733266434114,7084.0,7.057e-05,2]
[344060819,1733266438806,300.0,6.601e-05,2]
[344060820,1733266501339,200.0,6.595e-05,2]
[344060821,1733266508346,2500.0,7.1e-05,2]
[344060822,1733266535036,23900.0,6.562e-05,2]
[344060823,1733266537134,2000.0,6.562e-05,2]
[344060824,1733266537571,324.93,6.562e-05,2]
[344060825,1733266554591,319.13,6.562e-05,2]
[344060826,1733266572198,7445.7,6.562e-05,2]
[344060827,1733266597844,259.01,6.576e-05,2]
[344060828,1733266633656,2500.0,7.1e-05,2]
[344060829,1733266657859,629.34,6.596e-05,2]
[344060830,1733266689827,1597.67,6.596e-05,2]
[344060831,1733266705750,1500.0,6.609e-05,2]
[344060832,1733266712377,1226.65,7.056e-05,2]
[344060834,1733266731324,1685.39,6.609e-05,2]
[344060835,1733266759922,2500.0,7.1e-05,2]
[344060836,1733266770089,2664.32,6.611e-05,2]
[344060837,1733266786984,1000.0,0.00023,120]
[344060838,1733266800064,1354.38165667,0.00023,120]
[344060839,1733266809418,150.0,6.609e-05,2]
[344060840,1733266811298,249.12262312,6.609e-05,2]
[344060842,1733266838506,1564.05,6.561e-05,2]
[344060843,1733266862772,209.2364927,7.047e-05,2]
[344060844,1733266865172,2500.0,7.1e-05,2]
[344060845,1733266885486,166.66,6.731e-05,2]
[344060846,1733266886557,166.66,6.954e-05,2]
[344060847,1733266899904,150.0,7.029e-05,2]
[344060848,1733266913852,1632.68,6.527e-05,2]
[344060849,1733266924150,150.0,0.00023,120]
[344060850,1733266927647,250.0,6.533e-05,2]
[344060852,1733266978419,4664.44,6.529e-05,2]
[344060853,1733267026809,500.0,6.518e-05,2]
[344060854,1733267028545,250.0,6.518e-05,2]
[344060855,1733267095097,175.07,5.249e-05,2]
[344060856,1733267108015,150.0,6.929e-05,2]
[344060857,1733267113034,150.0,6.929e-05,2]
[344060858,1733267114613,150.0,7.025e-05,2]
[344060859,1733267115089,150.0,7.121e-05,2]
[344060860,1733267130472,150.0,6.929e-05,2]
[344060862,1733267141986,23900.0,6.487e-05,2]
[344060863,1733267145311,2000.0,6.487e-05,2]
[344060865,1733267191993,168.03,6.491e-05,2]
[344060866,1733267192855,547.41,6.491e-05,2]
[344060876,1733267243936,400.0,6.7e-05,2]
[344060877,1733267246047,800.0,6.8e-05,2]
[344060878,1733267248151,1300.0,6.9e-05,2]
[344060879,1733267250259,1700.0,7e-05,2]
[344060880,1733267292455,200.0,6.479e-05,2]
[344060900,1733267432305,-166.66,7.176e-05,2]
[344060903,1733267432315,-362.9181109,7.176e-05,2]
[344060905,1733267432325,-300.0,7.177e-05,2]
[344060907,1733267432335,-20830.0,7.178e-05,2]
[344060909,1733267432345,-150.0,7.185e-05,2]
[344060911,1733267432355,-150.0,7.197e-05,2]
[344060913,1733267432365,-150.0,7.198e-05,2]
[344060914,1733267432375,-150.0,7.198e-05,2]
[344060915,1733267432385,-150.0,7.198e-05,2]
[344060916,1733267432395,-150.0,7.198e-05,2]
[344060917,1733267432406,-150.0,7.198e-05,2]
[344060918,1733267432425,-150.0,7.198e-05,2]
[344060919,1733267432435,-150.0,7.198e-05,2]
[344060920,1733267432445,-150.0,7.198e-05,2]
[344060921,1733267432455,-150.0,7.198e-05,2]
[344060922,1733267432467,-150.0,7.198e-05,2]
[344060923,1733267432477,-150.0,7.198e-05,2]
[344060924,1733267432487,-150.0,7.198e-05,2]
[344060925,1733267432497,-150.0,7.198e-05,2]
[344060926,1733267432507,-150.0,7.198e-05,2]
[344060927,1733267432517,-150.0,7.198e-05,2]
[344060928,1733267432531,-150.0,7.198e-05,2]
[344060929,1733267432541,-150.0,7.198e-05,2]
[344060930,1733267432550,-150.0,7.198e-05,2]
[344060931,1733267432560,-150.0,7.198e-05,2]
[344060932,1733267432570,-1509.4085648,7.199e-05,2]
[344060933,1733267432580,-1000.0,7.199e-05,2]
[344060934,1733267432590,-1000.0,7.199e-05,3]
[344060935,1733267432600,-364072.87295251,7.2e-05,2]
[344060936,1733267432612,-1222.9,7.2e-05,2]
[344060937,1733267432623,-984.0,7.2e-05,2]
[344060938,1733267432634,-9401.88,7.2e-05,2]
[344060946,1733267432723,-8699.72528803,7.2e-05,2]
[344060948,1733267432734,-450.653,7.2e-05,2]
[344060950,1733267432745,-67199.99999999,7.2e-05,2]
[344060953,1733267432756,-23611.401843,7.2e-05,2]
[344060958,1733267432792,-5178.38772042,7.2e-05,2]
[344060960,1733267432804,-1189.367004,7.2e-05,2]
[344060962,1733267432814,-705.60000478,7.2e-05,2]
[344060963,1733267432825,-2495.0543073,7.2e-05,2]
[344060964,1733267432848,-1266.93502,7.2e-05,2]
[344060976,1733267440110,-1161.4798076,7.2e-05,2]
[344060979,1733267440235,-9719.7001119,7.2e-05,2]
[344060980,1733267440247,-389439.40973726,7.2e-05,2]
[344060981,1733267440344,-59497.7829552,7.2e-05,2]
[344060982,1733267440356,-3903.30909471,7.2e-05,2]
[344060983,1733267440442,-360.3376426,7.2e-05,2]
[344060984,1733267440455,-264.339999,7.2e-05,2]
[344061014,1733267443154,-401.26396,7.2e-05,2]
[344061015,1733267443165,-2027530.68902292,7.2e-05,2]
[344061016,1733267443235,-6025.72078837,7.2e-05,2]
[344061017,1733267443274,-941.2988204,7.2e-05,2]
[344061018,1733267443346,-3553.3120647,7.2e-05,2]
[344061019,1733267443442,-13385.19411226,7.2e-05,2]
[344061020,1733267443454,-369.09681148,7.2e-05,2]
[344061021,1733267443464,-300.83840128,7.2e-05,2]
[344061022,1733267443476,-516.582,7.2e-05,2]
[344061024,1733267443559,-53476.27805608,7.2e-05,2]
[344061037,1733267446082,-4457.373036,7.2e-05,2]
[344061038,1733267446187,-574.96954235,7.2e-05,2]
[344061039,1733267446295,-296.40138767,7.2e-05,2]
[344061040,1733267446307,-1884.94306,7.2e-05,2]
[344061041,1733267446432,-1293.27551,7.2e-05,2]
[344061044,1733267468814,236.352,7.1e-05,2]
[344061045,1733267487692,400.0,7e-05,2]
[344061046,1733267488446,800.0,7.1e-05,2]
[344061048,1733267510412,1643.59,6.545e-05,2]
[344061049,1733267513926,8478.0,7.163e-05,2]
[344061050,1733267525613,1500.0,6.545e-05,2]
[344061053,1733267549910,6695.4574,7.1e-05,2]
[344061054,1733267559608,150.0,7.001e-05,2]
[344061055,1733267561875,250.0,6.538e-05,2]
[344061056,1733267564974,2500.0,7.1e-05,2]
[344061057,1733267572430,150.0,0.00023,120]
[344061058,1733267584862,166.67,6.735e-05,2]
[344061059,1733267738472,23900.0,6.53e-05,2]
[344061060,1733267768830,250.0,6.53e-05,2]
[344061061,1733267780009,2000.0,6.514e-05,2]
[344061063,1733267856167,359.4126097,0.00023,120]
[344061071,1733267904351,562.07,6.516e-05,2]
[344061073,1733267960468,200.0,6.513e-05,2]
[344061074,1733267966383,158.8,7.061e-05,2]
[344061080,1733268079377,168.03,6.539e-05,2]
[344061081,1733268154022,184.83,6.516e-05,2]
[344061083,1733268191594,166.68,6.727e-05,2]
[344061084,1733268219615,150.0,7.096e-05,2]
[344061085,1733268219660,150.0,7.133e-05,2]
[344061086,1733268269682,250.0,6.53e-05,2]
[344061087,1733268316643,150.0,6.929e-05,2]
[344061088,1733268321714,150.14283122,6.929e-05,2]
[344061089,1733268326597,150.0,6.929e-05,2]
[344061090,1733268326935,150.0,7.083e-05,2]
[344061091,1733268341016,150.0,6.929e-05,2]
[344061092,1733268353193,9000.0,7e-05,2]
[344061093,1733268354370,23487.37150596,6.94e-05,2]
[344061096,1733268366245,3449.01301025,7e-05,2]
[344061099,1733268397043,730.55,6.614e-05,2]
[344061104,1733268425606,600.0,7e-05,2]
[344061105,1733268426641,1300.0,7.1e-05,2]
[344061116,1733268447978,292.0,1e-06,7]
[344061117,1733268475810,23900.0,6.569e-05,2]
[344061125,1733268544690,250.0,6.585e-05,2]
[344061170,1733268632340,-300.0,7.198e-05,2]
[344061171,1733268632350,-150.0,7.198e-05,2]
[344061172,1733268632359,-150.65342055,7.199e-05,2]
[344061173,1733268632368,-1184.94657945,7.199e-05,2]
[344061174,1733268632380,-1009.63774134,7.199e-05,2]
[344061175,1733268632391,-2076.78075,7.199e-05,2]
[344061176,1733268632438,-4265.59456787,7.199e-05,2]
[344061177,1733268632451,-23426.00000026,7.199e-05,2]
[344061178,1733268632478,-1385.3377045,7.199e-05,2]
[344061179,1733268632490,-986.136,7.199e-05,2]
[344061180,1733268632502,-257.196,7.199e-05,2]
[344061181,1733268632512,-2220.71021246,7.199e-05,2]
[344061182,1733268632558,-523.0307022,7.199e-05,2]
[344061183,1733268632570,-610.56,7.199e-05,2]
[344061184,1733268632581,-4202.2320185,7.199e-05,2]
[344061185,1733268632593,-8998.554852,7.199e-05,2]
[344061186,1733268632652,-36299.99994527,7.199e-05,2]
[344061187,1733268632664,-3999.37093081,7.199e-05,2]
[344061271,1733268639196,-79397.79761358,7.199e-05,2]
[344061272,1733268639207,-102829.47891932,7.2e-05,2]
[344061273,1733268639314,-530.93144074,7.2e-05,2]
[344061274,1733268639326,-2224.3842,7.2e-05,2]
[344061275,1733268639375,-268.50023698,7.2e-05,2]
[344061276,1733268639387,-5166.79272285,7.2e-05,2]
[344061277,1733268639461,-576.84912847,7.2e-05,2]
[344061278,1733268639474,-38726.21883737,7.2e-05,2]
[344061279,1733268639485,-2000.0,7.2e-05,2]
[344061280,1733268639497,-978.96264706,7.2e-05,2]
[344061281,1733268639507,-150.0,7.237e-05,2]
[344061282,1733268639517,-166.67,7.29e-05,2]
[344061283,1733268639526,-2600.0,7.3e-05,2]
[344061284,1733268639536,-547.41,7.303e-05,2]
[344061285,1733268639546,-150.0,7.329e-05,2]
[344061286,1733268639556,-562.07,7.33e-05,2]
[344061287,1733268639567,-150.0,7.34e-05,2]
[344061288,1733268639577,-435.27,7.34e-05,2]
[344061289,1733268639587,-300.89,7.34e-05,2]
[344061290,1733268639597,-150.0,7.34e-05,2]
[344061291,1733268639606,-150.0,7.34e-05,2]
[344061292,1733268639616,-150.0,7.34e-05,2]
[344061293,1733268639626,-363.9,7.34e-05,2]
[344061294,1733268639636,-150.0,7.34e-05,2]
[344061295,1733268639646,-154.44,7.34e-05,2]
[344061296,1733268639658,-150.0,7.34e-05,2]
[344061297,1733268639669,-150.0,7.34e-05,2]
[344061298,1733268639679,-767.83,7.34e-05,2]
[344061299,1733268639689,-767.83,7.35e-05,2]
[344061300,1733268639699,-150.0,7.35e-05,2]
[344061301,1733268639709,-435.27,7.35e-05,2]
[344061302,1733268639721,-767.83,7.35e-05,2]
[344061303,1733268639731,-435.27,7.35e-05,2]
[344061304,1733268639741,-318.13,7.35e-05,2]
[344061305,1733268639751,-767.83,7.35e-05,2]
[344061306,1733268639760,-435.27,7.35e-05,2]
[344061307,1733268639770,-435.27,7.35e-05,2]
[344061308,1733268639780,-767.83,7.35e-05,2]
[344061309,1733268639790,-435.27,7.35e-05,2]
[344061310,1733268639801,-767.83,7.35e-05,2]
[344061311,1733268639811,-478.98,7.35e-05,2]
[344061312,1733268639822,-747.83,7.35e-05,2]
[344061313,1733268639832,-435.27,7.35e-05,2]
[344061314,1733268639842,-150.0,7.391e-05,2]
[344061315,1733268639853,-166.66,7.398e-05,2]
[344061316,1733268639864,-3300.0,7.4e-05,2]
[344061317,1733268639874,-986.39069511,7.469e-05,2]
[344061318,1733268639884,-2930.00018,7.5e-05,2]
[344061319,1733268639894,-600.0,7.5e-05,2]
[344061320,1733268639906,-150.0,7.545e-05,2]
[344061321,1733268639916,-2003.0,7.55e-05,2]
[344061322,1733268639926,-630.0,7.55e-05,2]
[344061323,1733268639936,-150.0,7.55e-05,2]
[344061324,1733268639948,-1893.0,7.55e-05,2]
[344061325,1733268639958,-563.0,7.55e-05,2]
[344061326,1733268639972,-3760.0,7.55e-05,2]
[344061327,1733268639982,-1252.0,7.55e-05,2]
[344061328,1733268639991,-816.0,7.55e-05,2]
[344061329,1733268640002,-535.0,7.55e-05,2]
[344061330,1733268640011,-975.0,7.55e-05,2]
[344061331,1733268640022,-3528.0,7.55e-05,2]
[344061332,1733268640031,-185.287,7.55e-05,2]
[344061333,1733268640041,-1166.0,7.55e-05,2]
[344061334,1733268640051,-13709.0,7.55e-05,2]
[344061335,1733268640060,-5962.0,7.55e-05,2]
[344061336,1733268640070,-1261.0,7.55e-05,2]
[344061338,1733268640080,-566.0,7.55e-05,2]
[344061340,1733268640090,-764.33,7.568e-05,2]
[344061341,1733268640099,-295.18249188,7.58e-05,2]
[344061342,1733268640109,-150.0,7.6e-05,2]
[344061343,1733268640118,-150.0,7.6e-05,2]
[344061344,1733268640128,-986.3906951,7.6e-05,2]
[344061345,1733268640138,-600.0,7.6e-05,2]
[344061346,1733268640147,-700.23751111,7.6e-05,2]
[344061347,1733268640161,-2500.0,7.6e-05,2]
[344061348,1733268640171,-200.0,7.606e-05,2]
[344061349,1733268640180,-200.0,7.606e-05,2]
[344061350,1733268640190,-166.66,7.62e-05,2]
[344061351,1733268640200,-374.34580083,7.623e-05,2]
[344061352,1733268640211,-1530.5,7.63e-05,2]
[344061354,1733268640220,-185.38345834,7.63e-05,2]
[344061355,1733268640230,-199.78430719,7.663e-05,2]
[344061356,1733268640240,-159.40421994,7.663e-05,2]
[344061357,1733268640250,-159.8613416,7.663e-05,2]
[344061359,1733268640259,-500.0,7.663e-05,2]